{"text_format":"1","workbook":"xlsx","n_sheets":3,"sheets":["Term time booking form","Terms & Conditions","Admin"],"not_rendered":{"charts":0,"images":1,"macros":1,"external_links":0,"defined_names":2,"comments":0,"pivot_tables":0},"unopened":[],"bounds":{"document_bytes":16777216,"sheet_cells":100000,"rows_first":2000,"rows_last":500,"rows_between":2000,"halvings":0,"cell_chars":16384,"cell_head_chars":4096},"cells_cut":0,"cells_raw":0,"read":"whole","date_system":"1900"}

{"sheet":"Term time booking form","index":0,"n_rows":59,"n_cols":14,"rows_kept":59,"cut":false,"hidden":false,"merged":[[58,1,58,2],[12,1,12,8],[51,6,51,7],[52,6,52,7],[54,6,54,7],[49,2,49,6],[53,6,53,7],[56,5,56,8],[40,1,42,1],[36,1,38,1],[32,1,34,1],[28,1,30,1],[24,1,26,1],[20,1,22,1],[16,1,18,1],[2,2,2,8],[10,2,10,5],[10,7,10,8],[8,1,8,8],[44,1,46,1],[51,4,54,5],[54,2,54,3],[51,1,52,3],[5,7,5,8],[5,1,5,3],[6,4,6,6],[7,4,7,6],[5,4,5,6],[7,1,7,3],[6,1,6,3],[16,3,18,3],[16,4,18,4],[16,5,18,5]]}
[]
[]
[null,null,"WOSC Term time Advance booking form"]
[]
[]
[null,"Booking form period",null,null,{"$f":"Admin!G4","v":"Sept - Oct"},null,null,{"$f":"Admin!G3","v":2021},null,"2021-07-01T11:57:03"]
[null,null,null,null,"Form Submission Deadline:",null,null,{"$f":"Admin!G6","v":"2021-07-26"},23.59,{"$f":"IF(H7+1>= J6,FALSE,TRUE)","v":false}]
[null,null,null,null,null,null,null,null,null,{"$f":"MATCH(\"Total\",J9:J137,0) +8","v":50}]
[null,"All places are allocated on a first come, first serve basis, with priority given as per admissions and booking policy, to ensure compliance to Ofsted and insurance requirements.",null,null,null,null,null,null,null,{"$f":"MATCH(\"Header\",J10:J138,0) +9","v":15}]
[null,null,null,null,null,null,null,null,null,{"$f":"(I56=I50)","v":true}]
[null,"Childs Name*",null,null,null,null,"Year*"]
[]
[null,"Please complete one form per child. Place an x in the relevant session boxes that you require.  If you have a regular pattern, use the copy button to copy the pattern from the first week into subsequent weeks. Adjustment may be needed if bank holidays or WW training days fall in the first week. No refunds for any cancelled sessions."]
[]
[null,"Week","Time","Mon","Tues","Wed","Thurs","Fri","Weekly total","Header"]
[]
[null,"30/08/2021 - 03/09/2021","07:30 - 08:45","Club Closed","Club Closed","Club Closed",null,null,{"$f":"SUM(J17:N17)","v":0},{"$f":"IF(OR(D17=\"\",D17=Admin!$D$16, D17=Admin!$D$12),0,IF('Term time booking form'!$J$7,'Terms & Conditions'!$G$4,'Terms & Conditions'!$F$4))","v":0},{"$f":"IF(OR(E17=\"\",E17=Admin!$D$16, E17=Admin!$D$12),0,IF('Term time booking form'!$J$7,'Terms & Conditions'!$G$4,'Terms & Conditions'!$F$4))","v":0},{"$f":"IF(OR(F17=\"\",F17=Admin!$D$16, F17=Admin!$D$12),0,IF('Term time booking form'!$J$7,'Terms & Conditions'!$G$4,'Terms & Conditions'!$F$4))","v":0},{"$f":"IF(OR(G17=\"\",G17=Admin!$D$16, G17=Admin!$D$12),0,IF('Term time booking form'!$J$7,'Terms & Conditions'!$G$4,'Terms & Conditions'!$F$4))","v":0},{"$f":"IF(OR(H17=\"\",H17=Admin!$D$16, H17=Admin!$D$12),0,IF('Term time booking form'!$J$7,'Terms & Conditions'!$G$4,'Terms & Conditions'!$F$4))","v":0}]
[]
[null,null,"15:20 - 18:00",null,null,null,null,null,{"$f":"SUM(J19:N19)","v":0},{"$f":"IF(OR(D19=\"\",D19=Admin!$D$16, D19=Admin!$D$12),0,IF('Term time booking form'!$J$7,'Terms & Conditions'!$G$6,'Terms & Conditions'!$F$6))","v":0},{"$f":"IF(OR(E19=\"\",E19=Admin!$D$16, E19=Admin!$D$12),0,IF('Term time booking form'!$J$7,'Terms & Conditions'!$G$6,'Terms & Conditions'!$F$6))","v":0},{"$f":"IF(OR(F19=\"\",F19=Admin!$D$16, F19=Admin!$D$12),0,IF('Term time booking form'!$J$7,'Terms & Conditions'!$G$6,'Terms & Conditions'!$F$6))","v":0},{"$f":"IF(OR(G19=\"\",G19=Admin!$D$16, G19=Admin!$D$12),0,IF('Term time booking form'!$J$7,'Terms & Conditions'!$G$6,'Terms & Conditions'!$F$6))","v":0},{"$f":"IF(OR(H19=\"\",H19=Admin!$D$16, H19=Admin!$D$12),0,IF('Term time booking form'!$J$7,'Terms & Conditions'!$G$6,'Terms & Conditions'!$F$6))","v":0}]
[]
[null,"06/09/2021 - 10/09/2021","07:30 - 08:45",null,null,null,null,null,{"$f":"SUM(J21:N21)","v":0},{"$f":"IF(OR(D21=\"\",D21=Admin!$D$16, D21=Admin!$D$12),0,IF('Term time booking form'!$J$7,'Terms & Conditions'!$G$4,'Terms & Conditions'!$F$4))","v":0},{"$f":"IF(OR(E21=\"\",E21=Admin!$D$16, E21=Admin!$D$12),0,IF('Term time booking form'!$J$7,'Terms & Conditions'!$G$4,'Terms & Conditions'!$F$4))","v":0},{"$f":"IF(OR(F21=\"\",F21=Admin!$D$16, F21=Admin!$D$12),0,IF('Term time booking form'!$J$7,'Terms & Conditions'!$G$4,'Terms & Conditions'!$F$4))","v":0},{"$f":"IF(OR(G21=\"\",G21=Admin!$D$16, G21=Admin!$D$12),0,IF('Term time booking form'!$J$7,'Terms & Conditions'!$G$4,'Terms & Conditions'!$F$4))","v":0},{"$f":"IF(OR(H21=\"\",H21=Admin!$D$16, H21=Admin!$D$12),0,IF('Term time booking form'!$J$7,'Terms & Conditions'!$G$4,'Terms & Conditions'!$F$4))","v":0}]
[]
[null,null,"15:20 - 18:00",null,null,null,null,null,{"$f":"SUM(J23:N23)","v":0},{"$f":"IF(OR(D23=\"\",D23=Admin!$D$16, D23=Admin!$D$12),0,IF('Term time booking form'!$J$7,'Terms & Conditions'!$G$6,'Terms & Conditions'!$F$6))","v":0},{"$f":"IF(OR(E23=\"\",E23=Admin!$D$16, E23=Admin!$D$12),0,IF('Term time booking form'!$J$7,'Terms & Conditions'!$G$6,'Terms & Conditions'!$F$6))","v":0},{"$f":"IF(OR(F23=\"\",F23=Admin!$D$16, F23=Admin!$D$12),0,IF('Term time booking form'!$J$7,'Terms & Conditions'!$G$6,'Terms & Conditions'!$F$6))","v":0},{"$f":"IF(OR(G23=\"\",G23=Admin!$D$16, G23=Admin!$D$12),0,IF('Term time booking form'!$J$7,'Terms & Conditions'!$G$6,'Terms & Conditions'!$F$6))","v":0},{"$f":"IF(OR(H23=\"\",H23=Admin!$D$16, H23=Admin!$D$12),0,IF('Term time booking form'!$J$7,'Terms & Conditions'!$G$6,'Terms & Conditions'!$F$6))","v":0}]
[]
[null,"13/09/2021 - 17/09/2021","07:30 - 08:45",null,null,null,null,null,{"$f":"SUM(J25:N25)","v":0},{"$f":"IF(OR(D25=\"\",D25=Admin!$D$16, D25=Admin!$D$12),0,IF('Term time booking form'!$J$7,'Terms & Conditions'!$G$4,'Terms & Conditions'!$F$4))","v":0},{"$f":"IF(OR(E25=\"\",E25=Admin!$D$16, E25=Admin!$D$12),0,IF('Term time booking form'!$J$7,'Terms & Conditions'!$G$4,'Terms & Conditions'!$F$4))","v":0},{"$f":"IF(OR(F25=\"\",F25=Admin!$D$16, F25=Admin!$D$12),0,IF('Term time booking form'!$J$7,'Terms & Conditions'!$G$4,'Terms & Conditions'!$F$4))","v":0},{"$f":"IF(OR(G25=\"\",G25=Admin!$D$16, G25=Admin!$D$12),0,IF('Term time booking form'!$J$7,'Terms & Conditions'!$G$4,'Terms & Conditions'!$F$4))","v":0},{"$f":"IF(OR(H25=\"\",H25=Admin!$D$16, H25=Admin!$D$12),0,IF('Term time booking form'!$J$7,'Terms & Conditions'!$G$4,'Terms & Conditions'!$F$4))","v":0}]
[]
[null,null,"15:20 - 18:00",null,null,null,null,null,{"$f":"SUM(J27:N27)","v":0},{"$f":"IF(OR(D27=\"\",D27=Admin!$D$16, D27=Admin!$D$12),0,IF('Term time booking form'!$J$7,'Terms & Conditions'!$G$6,'Terms & Conditions'!$F$6))","v":0},{"$f":"IF(OR(E27=\"\",E27=Admin!$D$16, E27=Admin!$D$12),0,IF('Term time booking form'!$J$7,'Terms & Conditions'!$G$6,'Terms & Conditions'!$F$6))","v":0},{"$f":"IF(OR(F27=\"\",F27=Admin!$D$16, F27=Admin!$D$12),0,IF('Term time booking form'!$J$7,'Terms & Conditions'!$G$6,'Terms & Conditions'!$F$6))","v":0},{"$f":"IF(OR(G27=\"\",G27=Admin!$D$16, G27=Admin!$D$12),0,IF('Term time booking form'!$J$7,'Terms & Conditions'!$G$6,'Terms & Conditions'!$F$6))","v":0},{"$f":"IF(OR(H27=\"\",H27=Admin!$D$16, H27=Admin!$D$12),0,IF('Term time booking form'!$J$7,'Terms & Conditions'!$G$6,'Terms & Conditions'!$F$6))","v":0}]
[]
[null,"20/09/2021 - 24/09/2021","07:30 - 08:45",null,null,null,null,null,{"$f":"SUM(J29:N29)","v":0},{"$f":"IF(OR(D29=\"\",D29=Admin!$D$16, D29=Admin!$D$12),0,IF('Term time booking form'!$J$7,'Terms & Conditions'!$G$4,'Terms & Conditions'!$F$4))","v":0},{"$f":"IF(OR(E29=\"\",E29=Admin!$D$16, E29=Admin!$D$12),0,IF('Term time booking form'!$J$7,'Terms & Conditions'!$G$4,'Terms & Conditions'!$F$4))","v":0},{"$f":"IF(OR(F29=\"\",F29=Admin!$D$16, F29=Admin!$D$12),0,IF('Term time booking form'!$J$7,'Terms & Conditions'!$G$4,'Terms & Conditions'!$F$4))","v":0},{"$f":"IF(OR(G29=\"\",G29=Admin!$D$16, G29=Admin!$D$12),0,IF('Term time booking form'!$J$7,'Terms & Conditions'!$G$4,'Terms & Conditions'!$F$4))","v":0},{"$f":"IF(OR(H29=\"\",H29=Admin!$D$16, H29=Admin!$D$12),0,IF('Term time booking form'!$J$7,'Terms & Conditions'!$G$4,'Terms & Conditions'!$F$4))","v":0}]
[]
[null,null,"15:20 - 18:00",null,null,null,null,null,{"$f":"SUM(J31:N31)","v":0},{"$f":"IF(OR(D31=\"\",D31=Admin!$D$16, D31=Admin!$D$12),0,IF('Term time booking form'!$J$7,'Terms & Conditions'!$G$6,'Terms & Conditions'!$F$6))","v":0},{"$f":"IF(OR(E31=\"\",E31=Admin!$D$16, E31=Admin!$D$12),0,IF('Term time booking form'!$J$7,'Terms & Conditions'!$G$6,'Terms & Conditions'!$F$6))","v":0},{"$f":"IF(OR(F31=\"\",F31=Admin!$D$16, F31=Admin!$D$12),0,IF('Term time booking form'!$J$7,'Terms & Conditions'!$G$6,'Terms & Conditions'!$F$6))","v":0},{"$f":"IF(OR(G31=\"\",G31=Admin!$D$16, G31=Admin!$D$12),0,IF('Term time booking form'!$J$7,'Terms & Conditions'!$G$6,'Terms & Conditions'!$F$6))","v":0},{"$f":"IF(OR(H31=\"\",H31=Admin!$D$16, H31=Admin!$D$12),0,IF('Term time booking form'!$J$7,'Terms & Conditions'!$G$6,'Terms & Conditions'!$F$6))","v":0}]
[]
[null,"27/09/2021 - 01/10/2021","07:30 - 08:45",null,null,null,null,null,{"$f":"SUM(J33:N33)","v":0},{"$f":"IF(OR(D33=\"\",D33=Admin!$D$16, D33=Admin!$D$12),0,IF('Term time booking form'!$J$7,'Terms & Conditions'!$G$4,'Terms & Conditions'!$F$4))","v":0},{"$f":"IF(OR(E33=\"\",E33=Admin!$D$16, E33=Admin!$D$12),0,IF('Term time booking form'!$J$7,'Terms & Conditions'!$G$4,'Terms & Conditions'!$F$4))","v":0},{"$f":"IF(OR(F33=\"\",F33=Admin!$D$16, F33=Admin!$D$12),0,IF('Term time booking form'!$J$7,'Terms & Conditions'!$G$4,'Terms & Conditions'!$F$4))","v":0},{"$f":"IF(OR(G33=\"\",G33=Admin!$D$16, G33=Admin!$D$12),0,IF('Term time booking form'!$J$7,'Terms & Conditions'!$G$4,'Terms & Conditions'!$F$4))","v":0},{"$f":"IF(OR(H33=\"\",H33=Admin!$D$16, H33=Admin!$D$12),0,IF('Term time booking form'!$J$7,'Terms & Conditions'!$G$4,'Terms & Conditions'!$F$4))","v":0}]
[]
[null,null,"15:20 - 18:00",null,null,null,null,null,{"$f":"SUM(J35:N35)","v":0},{"$f":"IF(OR(D35=\"\",D35=Admin!$D$16, D35=Admin!$D$12),0,IF('Term time booking form'!$J$7,'Terms & Conditions'!$G$6,'Terms & Conditions'!$F$6))","v":0},{"$f":"IF(OR(E35=\"\",E35=Admin!$D$16, E35=Admin!$D$12),0,IF('Term time booking form'!$J$7,'Terms & Conditions'!$G$6,'Terms & Conditions'!$F$6))","v":0},{"$f":"IF(OR(F35=\"\",F35=Admin!$D$16, F35=Admin!$D$12),0,IF('Term time booking form'!$J$7,'Terms & Conditions'!$G$6,'Terms & Conditions'!$F$6))","v":0},{"$f":"IF(OR(G35=\"\",G35=Admin!$D$16, G35=Admin!$D$12),0,IF('Term time booking form'!$J$7,'Terms & Conditions'!$G$6,'Terms & Conditions'!$F$6))","v":0},{"$f":"IF(OR(H35=\"\",H35=Admin!$D$16, H35=Admin!$D$12),0,IF('Term time booking form'!$J$7,'Terms & Conditions'!$G$6,'Terms & Conditions'!$F$6))","v":0}]
[]
[null,"04/10/2021 - 08/10/2021","07:30 - 08:45",null,null,null,null,null,{"$f":"SUM(J37:N37)","v":0},{"$f":"IF(OR(D37=\"\",D37=Admin!$D$16, D37=Admin!$D$12),0,IF('Term time booking form'!$J$7,'Terms & Conditions'!$G$4,'Terms & Conditions'!$F$4))","v":0},{"$f":"IF(OR(E37=\"\",E37=Admin!$D$16, E37=Admin!$D$12),0,IF('Term time booking form'!$J$7,'Terms & Conditions'!$G$4,'Terms & Conditions'!$F$4))","v":0},{"$f":"IF(OR(F37=\"\",F37=Admin!$D$16, F37=Admin!$D$12),0,IF('Term time booking form'!$J$7,'Terms & Conditions'!$G$4,'Terms & Conditions'!$F$4))","v":0},{"$f":"IF(OR(G37=\"\",G37=Admin!$D$16, G37=Admin!$D$12),0,IF('Term time booking form'!$J$7,'Terms & Conditions'!$G$4,'Terms & Conditions'!$F$4))","v":0},{"$f":"IF(OR(H37=\"\",H37=Admin!$D$16, H37=Admin!$D$12),0,IF('Term time booking form'!$J$7,'Terms & Conditions'!$G$4,'Terms & Conditions'!$F$4))","v":0}]
[]
[null,null,"15:20 - 18:00",null,null,null,null,null,{"$f":"SUM(J39:N39)","v":0},{"$f":"IF(OR(D39=\"\",D39=Admin!$D$16, D39=Admin!$D$12),0,IF('Term time booking form'!$J$7,'Terms & Conditions'!$G$6,'Terms & Conditions'!$F$6))","v":0},{"$f":"IF(OR(E39=\"\",E39=Admin!$D$16, E39=Admin!$D$12),0,IF('Term time booking form'!$J$7,'Terms & Conditions'!$G$6,'Terms & Conditions'!$F$6))","v":0},{"$f":"IF(OR(F39=\"\",F39=Admin!$D$16, F39=Admin!$D$12),0,IF('Term time booking form'!$J$7,'Terms & Conditions'!$G$6,'Terms & Conditions'!$F$6))","v":0},{"$f":"IF(OR(G39=\"\",G39=Admin!$D$16, G39=Admin!$D$12),0,IF('Term time booking form'!$J$7,'Terms & Conditions'!$G$6,'Terms & Conditions'!$F$6))","v":0},{"$f":"IF(OR(H39=\"\",H39=Admin!$D$16, H39=Admin!$D$12),0,IF('Term time booking form'!$J$7,'Terms & Conditions'!$G$6,'Terms & Conditions'!$F$6))","v":0}]
[]
[null,"11/10/2021 - 15/10/2021","07:30 - 08:45",null,null,null,null,null,{"$f":"SUM(J41:N41)","v":0},{"$f":"IF(OR(D41=\"\",D41=Admin!$D$16, D41=Admin!$D$12),0,IF('Term time booking form'!$J$7,'Terms & Conditions'!$G$4,'Terms & Conditions'!$F$4))","v":0},{"$f":"IF(OR(E41=\"\",E41=Admin!$D$16, E41=Admin!$D$12),0,IF('Term time booking form'!$J$7,'Terms & Conditions'!$G$4,'Terms & Conditions'!$F$4))","v":0},{"$f":"IF(OR(F41=\"\",F41=Admin!$D$16, F41=Admin!$D$12),0,IF('Term time booking form'!$J$7,'Terms & Conditions'!$G$4,'Terms & Conditions'!$F$4))","v":0},{"$f":"IF(OR(G41=\"\",G41=Admin!$D$16, G41=Admin!$D$12),0,IF('Term time booking form'!$J$7,'Terms & Conditions'!$G$4,'Terms & Conditions'!$F$4))","v":0},{"$f":"IF(OR(H41=\"\",H41=Admin!$D$16, H41=Admin!$D$12),0,IF('Term time booking form'!$J$7,'Terms & Conditions'!$G$4,'Terms & Conditions'!$F$4))","v":0}]
[]
[null,null,"15:20 - 18:00",null,null,null,null,null,{"$f":"SUM(J43:N43)","v":0},{"$f":"IF(OR(D43=\"\",D43=Admin!$D$16, D43=Admin!$D$12),0,IF('Term time booking form'!$J$7,'Terms & Conditions'!$G$6,'Terms & Conditions'!$F$6))","v":0},{"$f":"IF(OR(E43=\"\",E43=Admin!$D$16, E43=Admin!$D$12),0,IF('Term time booking form'!$J$7,'Terms & Conditions'!$G$6,'Terms & Conditions'!$F$6))","v":0},{"$f":"IF(OR(F43=\"\",F43=Admin!$D$16, F43=Admin!$D$12),0,IF('Term time booking form'!$J$7,'Terms & Conditions'!$G$6,'Terms & Conditions'!$F$6))","v":0},{"$f":"IF(OR(G43=\"\",G43=Admin!$D$16, G43=Admin!$D$12),0,IF('Term time booking form'!$J$7,'Terms & Conditions'!$G$6,'Terms & Conditions'!$F$6))","v":0},{"$f":"IF(OR(H43=\"\",H43=Admin!$D$16, H43=Admin!$D$12),0,IF('Term time booking form'!$J$7,'Terms & Conditions'!$G$6,'Terms & Conditions'!$F$6))","v":0}]
[]
[null,"18/10/2021 - 22/10/2021","07:30 - 08:45",null,null,null,null,null,{"$f":"SUM(J45:N45)","v":0},{"$f":"IF(OR(D45=\"\",D45=Admin!$D$16, D45=Admin!$D$12),0,IF('Term time booking form'!$J$7,'Terms & Conditions'!$G$4,'Terms & Conditions'!$F$4))","v":0},{"$f":"IF(OR(E45=\"\",E45=Admin!$D$16, E45=Admin!$D$12),0,IF('Term time booking form'!$J$7,'Terms & Conditions'!$G$4,'Terms & Conditions'!$F$4))","v":0},{"$f":"IF(OR(F45=\"\",F45=Admin!$D$16, F45=Admin!$D$12),0,IF('Term time booking form'!$J$7,'Terms & Conditions'!$G$4,'Terms & Conditions'!$F$4))","v":0},{"$f":"IF(OR(G45=\"\",G45=Admin!$D$16, G45=Admin!$D$12),0,IF('Term time booking form'!$J$7,'Terms & Conditions'!$G$4,'Terms & Conditions'!$F$4))","v":0},{"$f":"IF(OR(H45=\"\",H45=Admin!$D$16, H45=Admin!$D$12),0,IF('Term time booking form'!$J$7,'Terms & Conditions'!$G$4,'Terms & Conditions'!$F$4))","v":0}]
[]
[null,null,"15:20 - 18:00",null,null,null,null,null,{"$f":"SUM(J47:N47)","v":0},{"$f":"IF(OR(D47=\"\",D47=Admin!$D$16, D47=Admin!$D$12),0,IF('Term time booking form'!$J$7,'Terms & Conditions'!$G$6,'Terms & Conditions'!$F$6))","v":0},{"$f":"IF(OR(E47=\"\",E47=Admin!$D$16, E47=Admin!$D$12),0,IF('Term time booking form'!$J$7,'Terms & Conditions'!$G$6,'Terms & Conditions'!$F$6))","v":0},{"$f":"IF(OR(F47=\"\",F47=Admin!$D$16, F47=Admin!$D$12),0,IF('Term time booking form'!$J$7,'Terms & Conditions'!$G$6,'Terms & Conditions'!$F$6))","v":0},{"$f":"IF(OR(G47=\"\",G47=Admin!$D$16, G47=Admin!$D$12),0,IF('Term time booking form'!$J$7,'Terms & Conditions'!$G$6,'Terms & Conditions'!$F$6))","v":0},{"$f":"IF(OR(H47=\"\",H47=Admin!$D$16, H47=Admin!$D$12),0,IF('Term time booking form'!$J$7,'Terms & Conditions'!$G$6,'Terms & Conditions'!$F$6))","v":0}]
[]
[]
[null,null,null,null,null,null,null,"Half term total fees",{"$f":"SUM(I16:I49)","v":0},"Total"]
[]
[null,"Note that payment must be received within 5 days of a place being confirmed.",null,null,"Payment method*",null,"Amount to be paid by cheque:"]
[null,null,null,null,null,null,"Amount to be paid by BACS:"]
[null,null,null,null,null,null,"Amount to be paid by credit:"]
[null,"Voucher scheme name",null,null,null,null,"Amount to be paid by Voucher"]
[null,null,null,null,null,null,null,"Total payment",{"$f":"SUM(I52:I55)","v":0},{"$f":"I50-I56","v":0}]
[null,null,null,null,null,"Warning: Total payment does not equal total half term fees!"]
[null,"Admin only","EB","FR"]
[null,"Date form received"]

{"sheet":"Terms & Conditions","index":1,"n_rows":37,"n_cols":7,"rows_kept":37,"cut":false,"hidden":false,"merged":[]}
[null,"WOSC Terms & Conditions (Please also see admissions policy)",null,null,"WOSC RATES 2021/22"]
[]
[1,"Annual Registration (membership)",null,null,null,"Early bird","Full rate"]
[null,"i","The annual registration form & consent forms must be completed before any child can be booked into the club. ",null,"Breakfast club",{"$f":"Admin!P4","v":5.05},{"$f":"Admin!Q4","v":5.05}]
[null,"ii","Any bookings received without a registration form will not be accepted.",null,"After school until 5pm",{"$f":"Admin!P5","v":0},{"$f":"Admin!Q5","v":0}]
[null,"ii","Registration forms must be submitted or resubmitted annually for each child for the start of the September term.  ",null,"After school until 6pm",{"$f":"Admin!P6","v":12},{"$f":"Admin!Q6","v":12}]
[]
[]
[2,"WOSC Calendar"]
[null,"i","The WOSC Calendar can be found on the club's website and contains all of the deadline dates, form release and payment dates, bank holidays, WW training days and holiday club days.  "]
[]
[3,"Bookings for September 2021"]
[null,"i","Booking forms for the September term will be released in July assuming Covid restrictions don't change. Booking forms will not be accepted without a completed registration and permission form."]
[null,"ii","Early bird rate is currently suspended but there is a deadline date to allow time to plan staffing and allocate places. "]
[null,"iii","Once the booking form is released on the WOSC website, the following priorities for place allocation will be made:\n1. Children of staff and committee, looked-after and vulnerable children as defined by William Westley.\n2. William Westley children on first come first serve basis (time/date of email). \n3. Booking requests for siblings will be managed together provided the individual booking forms are submitted simultaneously.\nPlease note, email booking submission is prefered to allow a timely response. Paper booking forms may be submitted via the post box in the WOSC room"]
[null,"iv","Places will be confirmed within 2 weeks of the deadline date but the session place is still subject to payment being made. Payment must be received within 5 days of a place being offered to secure your child's place for the half term period  otherwise your child's place will be lost.  "]
[null,"v","If payment is not received in full and on time, then your reserved places will be lost. "]
[null,"viii","No refunds will be offered for any sessions cancelled, but please call the staff (01223 495565) to let them if your child will not be attending WOSC."]
[null,"vii","WOSC are taking additional precautions due to Covid-19. However, in the event that club is unable to open, due to either a confirmed case or isolation of staff, then the following procedures will apply:                                                             I) Parents/guardians will be informed at the earliest opportunity via email or phone.\nII) Refunds can only be offered if WOSC is closed for a period of 3 consecutive days (or more)’ "]
[null,"viii","New registrations & initiation of regular session bookings are welcome all year round but are subject to availability. "]
[null,"ix","Please note that the  total number of children per session is dependent on staff: children ratios and maximum capacity for our facilities. "]
[]
[5,"Bookings made after deadline, including late, adhoc and emergency bookings"]
[null,"i","For bookings being made after the deadline for the half term, email bookings@wosclub.co.uk (if booking at least a week in advance), speak to a member of staff or call the club telephone 01223 495565 during club hours. Confirmation of availability will need to be received from a member of staff."]
[null,"ii","Payment at full rate is required immediately. If payment is not received within 5 working days of the session request, then the club reserve the right not to accept your child for future bookings."]
[null,"iii","On confirmation of availability, the staff will make a record of the session(s) required and payment will be checked.  If payment is not received then the club reserve the right not to accept your child child for future bookings."]
[]
[6,"Payment methods"]
[null,"i","Payment is prefered by BACS, however cheques will be accepted. Please note cheques must be received (posted in club postbox) by the early bird deadline.\n\nCheques must be made payable to: Whittlesford Out of School Club CIO\n\nWOSC Bank account details for BACS:\nSort code: 09-01-29\nAccount number: 14319503\nPlease use child's full name as reference\n"]
[null,"ii","Payment or part payment can also be made using childcare vouchers.  Please use the dropdown list on the booking form to select your provider and ensure that the total payment made to the club covers the session fees in the booking form."]
[null,"iii","If payment or part payment is being made by childcare vouchers, please ensure that your WOSC account is in sufficient credit to cover fees by the early bird payment deadline or before your child starts sessions if paying full rate.   If insufficent payment is received by the early bird payment deadline, your place(s) cannot be guaranteed."]
[null,"iv","If any parent has any problems with making payment, they should contact the treasurer@wosclub.co.uk to discuss appropriate options."]
[null,"v","Note that the committee is comprised of volunteers, therefore the club reserves the right to utilise date of payment on bank statements, date cheques received in club and date vouchers paid in as reference.  Follow up for non-payment therefore may not be immediate due to the personal commitments of the committee."]
[]
[7,"Accumulated credit"]
[null,"i","Parents are responsible for managing their credit with the club if sessions are cancelled with greater than 7 working days notice. See Admissions policy for cancellation rules.  Note that vouchers are not refundable."]
[null,"ii","To support parents in reviewing credit, statements may be issued at the end of each half term. "]

{"sheet":"Admin","index":2,"n_rows":36,"n_cols":17,"rows_kept":36,"cut":false,"hidden":true,"merged":[]}
["WOSC admin only"]
[null,null,null,null,null,null,null,null,null,null,null,null,null,null,"Rates"]
[null,null,"Select year",null,null,null,2021,null,null,null,null,null,null,null,null,"Early bird","Full rate"]
[null,null,"State which half term period",null,null,null,"Sept - Oct",null,null,null,null,null,null,null,"Breakfast club",5.05,5.05]
[]
[null,null,"Deadline date",null,null,null,"2021-07-26",null,null,null,null,null,null,null,"After school until 6pm",12,12]
[]
[null,null,"No. of weeks in half term period",null,null,null,8,null,null,null,null,null,null,null,"Date rates entered","2021-07-01"]
[null,null,"Date of Monday of first week",null,null,null,"2021-08-30"]
[]
[null,null,null,null,null,"wk no.","day","day #"]
[null,null,"Date of","Club Closed",1,1,"Monday",{"$f":"VLOOKUP(G12,E$25:F$29,2,FALSE)","v":1}]
[null,null,null,null,2,1,"Tuesday",{"$f":"VLOOKUP(G13,E$25:F$29,2,FALSE)","v":2},null,null,null,null,null,null,"Voucher lookup"]
[null,null,null,null,3,1,"Wednesday",{"$f":"VLOOKUP(G14,E$25:F$29,2,FALSE)","v":3},null,null,null,null,null,null,"Edenred"]
[null,null,null,null,null,null,null,null,null,null,null,null,null,null,"Kids Unlimited"]
[null,null,"Date of","Training day",1,null,null,{"$f":"VLOOKUP(G16,E$25:F$29,2,FALSE)","v":{"$error":"#N/A"}},null,null,null,null,null,null,"Computershare"]
[null,null,null,null,2,null,null,{"$f":"VLOOKUP(G17,E$25:F$29,2,FALSE)","v":{"$error":"#N/A"}},null,null,null,null,null,null,"Sodexo/SayCarePass"]
[null,null,null,null,null,null,null,null,null,null,null,null,null,null,"Kiddivouchers"]
[null,null,null,null,null,null,null,null,null,null,null,null,null,null,"AllSave"]
[null,null,null,null,null,null,null,null,null,null,null,null,null,null,"You at Work"]
[null,null,null,null,null,null,null,null,null,null,null,null,null,null,"Busy Bees Benefits: "]
[null,null,null,null,null,null,null,null,null,null,null,null,null,null,"Care4"]
[null,null,"LOOKUP",null,null,null,null,null,null,null,null,null,null,null,"Faircare"]
[null,null,"year","halfterm","BH Day","BH wk",null,null,null,null,null,null,null,null,"Government Tax Free Childcare scheme"]
[null,null,2021,"Sept - Oct","Monday",1]
[null,null,2022,"Nov - Dec","Tuesday",2]
[null,null,2023,"Jan- Feb","Wednesday",3]
[null,null,2024,"Feb-Mar","Thursday",4]
[null,null,2025,"Feb  - Apr","Friday",5]
[null,null,2026,"Apr - May",null,6]
[null,null,null,"June - July",null,7]
[null,null,null,null,null,8]
["Do not move the table below including the line below it from Row 34 Column 2"]
[null,null,"07:30 - 08:45",null,null,null,null,null,{"$f":"SUM(J34:N34)","v":0},{"$f":"IF(OR(D34=\"\",D34=Admin!$D$16, D34=Admin!$D$12),0,IF('Term time booking form'!$J$7,'Terms & Conditions'!$G$4,'Terms & Conditions'!$F$4))","v":0},{"$f":"IF(OR(E34=\"\",E34=Admin!$D$16, E34=Admin!$D$12),0,IF('Term time booking form'!$J$7,'Terms & Conditions'!$G$4,'Terms & Conditions'!$F$4))","v":0},{"$f":"IF(OR(F34=\"\",F34=Admin!$D$16, F34=Admin!$D$12),0,IF('Term time booking form'!$J$7,'Terms & Conditions'!$G$4,'Terms & Conditions'!$F$4))","v":0},{"$f":"IF(OR(G34=\"\",G34=Admin!$D$16, G34=Admin!$D$12),0,IF('Term time booking form'!$J$7,'Terms & Conditions'!$G$4,'Terms & Conditions'!$F$4))","v":0},{"$f":"IF(OR(H34=\"\",H34=Admin!$D$16, H34=Admin!$D$12),0,IF('Term time booking form'!$J$7,'Terms & Conditions'!$G$4,'Terms & Conditions'!$F$4))","v":0}]
[]
[null,null,"15:20 - 18:00",null,null,null,null,null,{"$f":"SUM(J36:N36)","v":0},{"$f":"IF(OR(D36=\"\",D36=Admin!$D$16, D36=Admin!$D$12),0,IF('Term time booking form'!$J$7,'Terms & Conditions'!$G$6,'Terms & Conditions'!$F$6))","v":0},{"$f":"IF(OR(E36=\"\",E36=Admin!$D$16, E36=Admin!$D$12),0,IF('Term time booking form'!$J$7,'Terms & Conditions'!$G$6,'Terms & Conditions'!$F$6))","v":0},{"$f":"IF(OR(F36=\"\",F36=Admin!$D$16, F36=Admin!$D$12),0,IF('Term time booking form'!$J$7,'Terms & Conditions'!$G$6,'Terms & Conditions'!$F$6))","v":0},{"$f":"IF(OR(G36=\"\",G36=Admin!$D$16, G36=Admin!$D$12),0,IF('Term time booking form'!$J$7,'Terms & Conditions'!$G$6,'Terms & Conditions'!$F$6))","v":0},{"$f":"IF(OR(H36=\"\",H36=Admin!$D$16, H36=Admin!$D$12),0,IF('Term time booking form'!$J$7,'Terms & Conditions'!$G$6,'Terms & Conditions'!$F$6))","v":0}]